fUST/lending_fUST_20240624
["ID","MTS","AMOUNT","RATE_DAILY","PERIOD"]
[330206595,1719158480983,159.28756752,0.00024999,60]
[330206596,1719158485159,166.50299,0.00023562,65]
[330206597,1719158485370,166.50299,0.00023562,74]
[330206598,1719158485674,166.50299,0.00023562,83]
[330206599,1719158485954,166.50299,0.00023562,92]
[330206600,1719158486201,166.50299,0.00023562,101]
[330206601,1719158486432,166.50299,0.00023562,110]
[330206602,1719158486638,166.50299,0.00023562,119]
[330206606,1719158573366,525.34267805,0.00024999,60]
[330206611,1719158861913,204.45,0.00010959,2]
[330206612,1719158872478,170.38,0.00010959,2]
[330206617,1719158883211,851.92,0.00010959,2]
[330206619,1719158946128,154.85288975,0.00013283,2]
[330206631,1719158992136,155.00559974,0.00013283,2]
[330206679,1719159031874,-300.0,0.00015062,2]
[330206680,1719159031885,-300.0,0.00015062,2]
[330206682,1719159031894,-24900.0,0.00015063,2]
[330206685,1719159031904,-594.574845,0.00015304,2]
[330206686,1719159031914,-167.4837934,0.00015355,2]
[330206689,1719159031924,-3000.0,0.00015419,2]
[330206691,1719159031937,-430.707473,0.00015535,2]
[330206692,1719159031946,-307.6785805,0.00015739,2]
[330206695,1719159031956,-389.0,0.00016483,2]
[330206698,1719159031966,-764.47495044,0.00016494,2]
[330206701,1719159031975,-420.0,0.00016568,2]
[330206703,1719159031985,-309.56428709,0.00016594,2]
[330206705,1719159031994,-309.56428705,0.00016601,2]
[330206707,1719159032003,-309.56428705,0.00016607,2]
[330206709,1719159032013,-309.56428705,0.00016614,2]
[330206710,1719159032025,-309.56428705,0.0001662,2]
[330206712,1719159032034,-7708.39,0.00016718,2]
[330206715,1719159032044,-500.0,0.00016718,2]
[330206716,1719159032054,-1731.62316106,0.00016718,2]
[330206719,1719159032066,-95.29683894,0.00016718,2]
[330206721,1719159032075,-505.70316106,0.00016718,2]
[330206723,1719159032087,-7923.61683894,0.00016718,2]
[330206725,1719159032097,-76.88565006,0.00016718,2]
[330206728,1719159032113,-1698.55434994,0.00016718,2]
[330206730,1719159032122,-961.17,0.00016718,2]
[330206732,1719159032132,-539.72,0.00016719,2]
[330206734,1719159032141,-6375.05565006,0.00016719,2]
[330206736,1719159032152,-324.87774632,0.00016719,2]
[330206770,1719159038458,-500.0,0.00016718,2]
[330206771,1719159038467,-500.0,0.00016718,2]
[330206772,1719159038476,-28249.71660362,0.00016719,2]
[330206773,1719159038485,-40867.97,0.00016719,2]
[330206774,1719159038494,-964.7,0.00016719,2]
[330206775,1719159038503,-3890.55,0.00016719,2]
[330206776,1719159038513,-7658.93,0.00016719,2]
[330206777,1719159038522,-6432.99,0.00016719,2]
[330206778,1719159038531,-1385.13,0.00016719,2]
[330206779,1719159038540,-651.19,0.00016719,2]
[330206780,1719159038549,-4957.91,0.00016719,2]
[330206781,1719159038558,-1033.59,0.00016719,2]
[330206782,1719159038567,-500.0,0.00016719,2]
[330206783,1719159038576,-500.0,0.00016719,2]
[330206784,1719159038585,-701.26,0.00016719,2]
[330206785,1719159038594,-8120.16,0.00016719,2]
[330206786,1719159038603,-500.0,0.0001672,2]
[330206787,1719159038612,-500.0,0.0001672,2]
[330206788,1719159038622,-500.0,0.0001672,2]
[330206789,1719159038631,-500.0,0.0001672,2]
[330206790,1719159038641,-703.11,0.0001672,2]
[330206791,1719159038650,-500.0,0.0001672,2]
[330206792,1719159038660,-560.33,0.0001672,2]
[330206793,1719159038669,-563.56,0.0001672,2]
[330206794,1719159038679,-503.83621837,0.0001672,2]
[330206795,1719159038690,-573.8,0.0001672,2]
[330206796,1719159038700,-500.0,0.0001672,2]
[330206797,1719159038709,-500.0,0.0001672,2]
[330206798,1719159038719,-500.0,0.0001672,2]
[330206799,1719159038728,-500.0,0.0001672,2]
[330206800,1719159038738,-500.0,0.0001672,2]
[330206801,1719159038747,-513.57038415,0.0001672,2]
[330206802,1719159038756,-500.0,0.0001672,2]
[330206803,1719159038766,-500.0,0.0001672,2]
[330206804,1719159038775,-500.0,0.0001672,2]
[330206805,1719159038784,-500.0,0.0001672,2]
[330206806,1719159038794,-500.0,0.0001672,2]
[330206807,1719159038803,-2392.25,0.0001672,2]
[330206808,1719159038812,-500.0,0.0001672,2]
[330206809,1719159038821,-507.02998808,0.0001672,2]
[330206811,1719159038830,-500.0,0.0001672,2]
[330206813,1719159038839,-511.32665953,0.0001672,2]
[330206814,1719159038849,-658.92,0.0001672,2]
[330206815,1719159038858,-500.0,0.0001672,2]
[330206817,1719159038867,-917.87,0.0001672,2]
[330206818,1719159038877,-500.0,0.0001672,2]
[330206819,1719159038886,-500.0,0.0001672,2]
[330206820,1719159038895,-500.0,0.0001672,2]
[330206822,1719159038905,-504.74796363,0.0001672,2]
[330206824,1719159038914,-500.0,0.0001672,2]
[330206825,1719159038923,-500.0,0.0001672,2]
[330206826,1719159038932,-500.0,0.0001672,2]
[330206828,1719159038943,-500.0,0.0001672,2]
[330206830,1719159038953,-5621.1,0.0001672,2]
[330206831,1719159038963,-500.0,0.0001672,2]
[330206832,1719159038972,-510.97057269,0.0001672,2]
[330206833,1719159038982,-500.0,0.0001672,2]
[330206835,1719159038991,-500.0,0.0001672,2]
[330206836,1719159038999,-500.0,0.0001672,2]
[330206837,1719159039010,-503.81575616,0.0001672,2]
[330206838,1719159039020,-511.12852028,0.0001672,2]
[330206839,1719159039034,-500.0,0.0001672,2]
[330206840,1719159039044,-502.15177842,0.0001672,2]
[330206841,1719159039055,-271.29024676,0.0001672,2]
[330206842,1719159039066,-500.0,0.0001672,2]
[330206843,1719159039076,-500.0,0.0001672,2]
[330206844,1719159039085,-500.0,0.0001672,2]
[330206845,1719159039095,-676.25,0.0001672,2]
[330206846,1719159039105,-512.49333873,0.0001672,2]
[330206847,1719159039115,-1082.33,0.0001672,2]
[330206848,1719159039125,-501.42628118,0.0001672,2]
[330206849,1719159039135,-500.0,0.0001672,2]
[330206850,1719159039145,-1881.11,0.0001672,2]
[330206851,1719159039155,-500.0,0.0001672,2]
[330206852,1719159039165,-505.60793577,0.0001672,2]
[330206853,1719159039175,-2097.82,0.0001672,2]
[330206854,1719159039186,-500.0,0.0001672,2]
[330206855,1719159039195,-513.77365617,0.0001672,2]
[330206856,1719159039205,-500.0,0.0001672,2]
[330206857,1719159039214,-533.0152979,0.0001672,2]
[330206858,1719159039224,-500.0,0.0001672,2]
[330206859,1719159039234,-500.0,0.0001672,2]
[330206860,1719159039243,-500.0,0.0001672,2]
[330206861,1719159039253,-500.0,0.0001672,2]
[330206862,1719159039262,-500.0,0.0001672,2]
[330206863,1719159039272,-500.0,0.0001672,2]
[330206864,1719159039282,-614.24,0.0001672,2]
[330206865,1719159039291,-504.36590357,0.0001672,2]
[330206866,1719159039300,-500.0,0.0001672,2]
[330206867,1719159039310,-500.0,0.0001672,2]
[330206868,1719159039320,-500.0,0.0001672,2]
[330206869,1719159039330,-500.0,0.0001672,2]
[330206870,1719159039339,-1169.9,0.0001672,2]
[330206871,1719159039348,-1807.68,0.0001672,2]
[330206872,1719159039358,-500.0,0.0001672,2]
[330206873,1719159039368,-500.0,0.0001672,2]
[330206874,1719159039378,-506.10057467,0.0001672,2]
[330206875,1719159039388,-513.59045655,0.0001672,2]
[330206876,1719159039397,-506.58843427,0.0001672,2]
[330206877,1719159039406,-500.0,0.0001672,2]
[330206878,1719159039416,-500.0,0.0001672,2]
[330206879,1719159039426,-500.0,0.0001672,2]
[330206880,1719159039436,-500.0,0.0001672,2]
[330206881,1719159039447,-500.0,0.0001672,2]
[330206882,1719159039457,-506.14449704,0.0001672,2]
[330206883,1719159039468,-500.0,0.0001672,2]
[330206884,1719159039483,-1656.77,0.0001672,2]
[330206885,1719159039493,-513.73630675,0.0001672,2]
[330206886,1719159039504,-512.82241203,0.0001672,2]
[330206887,1719159039514,-500.0,0.0001672,2]
[330206888,1719159039523,-500.0,0.0001672,2]
[330206889,1719159039533,-500.0,0.0001672,2]
[330206890,1719159039543,-500.0,0.0001672,2]
[330206891,1719159039553,-507.92852207,0.0001672,2]
[330206893,1719159039564,-500.0,0.0001672,2]
[330206894,1719159039575,-1903.89,0.0001672,2]
[330206895,1719159039586,-520.85567706,0.0001672,2]
[330206896,1719159039595,-500.0,0.0001672,2]
[330206897,1719159039605,-503.01,0.0001672,2]
[330206898,1719159039614,-500.0,0.0001672,2]
[330206899,1719159039624,-500.0,0.0001672,2]
[330206900,1719159039634,-500.0,0.0001672,2]
[330206901,1719159039643,-508.00926087,0.0001672,2]
[330206902,1719159039654,-1984.79,0.0001672,2]
[330206903,1719159039663,-553.66169541,0.0001672,2]
[330206904,1719159039673,-500.0,0.0001672,2]
[330206905,1719159039683,-161.48419238,0.0001672,2]
[330206907,1719159039696,-505.30733151,0.0001672,2]
[330206908,1719159039706,-500.0,0.0001672,2]
[330206909,1719159039716,-615.59,0.0001672,2]
[330206910,1719159039725,-500.0,0.0001672,2]
[330206911,1719159039735,-508.37003316,0.0001672,2]
[330206912,1719159039744,-501.52926805,0.0001672,2]
[330206914,1719159039755,-500.0,0.0001672,2]
[330206915,1719159039765,-500.0,0.0001672,2]
[330206916,1719159039774,-500.0,0.0001672,2]
[330206917,1719159039784,-500.0,0.0001672,2]
[330206918,1719159039794,-1748.02,0.0001672,2]
[330206919,1719159039803,-502.27573382,0.0001672,2]
[330206920,1719159039813,-505.55420934,0.0001672,2]
[330206921,1719159039823,-500.0,0.0001672,2]
[330206922,1719159039832,-1569.8,0.0001672,2]
[330206923,1719159039842,-500.0,0.0001672,2]
[330206924,1719159039852,-500.0,0.0001672,2]
[330206925,1719159039862,-443.86155553,0.0001672,2]
[330206927,1719159039872,-528.35359237,0.0001672,2]
[330206928,1719159039881,-500.0,0.0001672,2]
[330206930,1719159039891,-500.0,0.0001672,2]
[330206932,1719159039901,-500.0,0.0001672,2]
[330206933,1719159039910,-599.3,0.0001672,2]
[330206934,1719159039920,-500.0,0.0001672,2]
[330206935,1719159039930,-500.0,0.0001672,2]
[330206936,1719159039946,-500.0,0.0001672,2]
[330206937,1719159039958,-662.87,0.0001672,2]
[330206938,1719159039968,-443.13669869,0.0001672,2]
[330206939,1719159039978,-507.0880278,0.0001672,2]
[330206940,1719159039988,-448.90127041,0.0001672,2]
[330206941,1719159039998,-509.31302783,0.0001672,2]
[330206943,1719159040008,-500.0,0.0001672,2]
[330206944,1719159040021,-500.0,0.0001672,2]
[330206945,1719159040032,-500.0,0.0001672,2]
[330206946,1719159040042,-500.0,0.0001672,2]
[330206947,1719159040054,-500.0,0.0001672,2]
[330206948,1719159040068,-500.0,0.0001672,2]
[330206949,1719159040079,-500.0,0.0001672,2]
[330206950,1719159040089,-1512.44,0.0001672,2]
[330206951,1719159040099,-503.76189603,0.0001672,2]
[330206952,1719159040112,-835.72,0.0001672,2]
[330206953,1719159040123,-611.26,0.0001672,2]
[330206954,1719159040133,-954.27,0.0001672,2]
[330206955,1719159040143,-500.0,0.0001672,2]
[330206956,1719159040153,-690.66,0.0001672,2]
[330206957,1719159040164,-555.01838012,0.0001672,2]
[330206958,1719159040175,-14606.13680887,0.00016721,2]
[330206959,1719159040184,-10398.72317107,0.00016932,2]
[330206960,1719159041034,-500.0,0.0001672,2]
[330206961,1719159041044,-162.20308581,0.00016932,2]
[330206962,1719159041053,-7708.39,0.00016992,2]
[330206963,1719159041063,-500.0,0.00016992,2]
[330206964,1719159041072,-1826.92,0.00016992,2]
[330206965,1719159041082,-6927.21936225,0.00016992,2]
[330206966,1719159041094,-1502.10063775,0.00016992,2]
[330206967,1719159041107,-1775.44,0.00016992,2]
[330206968,1719159041117,-961.17,0.00016992,2]
[330206969,1719159041126,-500.0,0.00016992,2]
[330206970,1719159041135,-500.0,0.00016992,2]
[330206971,1719159041144,-539.72,0.00016993,2]
[330206972,1719159041153,-34949.65,0.00016993,2]
[330206973,1719159041162,-7696.97979379,0.00016993,2]
[330206974,1719159041174,-33170.99020621,0.00016993,2]
[330206975,1719159041184,-964.7,0.00016993,2]
[330206976,1719159041197,-154.296213,0.00016993,2]
[330206977,1719159041207,-3890.55,0.00016993,2]
[330206978,1719159041217,-7658.93,0.00016993,2]
[330206979,1719159041226,-6432.99,0.00016993,2]
[330206980,1719159041236,-1385.13,0.00016993,2]
[330206981,1719159041246,-651.19,0.00016993,2]
[330206982,1719159041255,-4957.91,0.00016993,2]
[330206983,1719159041265,-1033.59,0.00016993,2]
[330206984,1719159041275,-500.0,0.00016993,2]
[330206985,1719159041285,-500.0,0.00016993,2]
[330206986,1719159041295,-701.26,0.00016993,2]
[330206987,1719159041304,-8120.16,0.00016993,2]
[330206988,1719159041313,-500.0,0.00016994,2]
[330206989,1719159041323,-512.25032293,0.00016994,2]
[330206990,1719159041332,-500.0,0.00016994,2]
[330206991,1719159041342,-500.0,0.00016994,2]
[330206992,1719159041352,-703.11,0.00016994,2]
[330206993,1719159041363,-500.0,0.00016994,2]
[330206994,1719159041373,-560.33,0.00016994,2]
[330206995,1719159041382,-563.56,0.00016994,2]
[330206996,1719159041392,-573.8,0.00016994,2]
[330206997,1719159041401,-523.15595632,0.00016994,2]
[330206998,1719159041411,-500.0,0.00016994,2]
[330206999,1719159041420,-500.0,0.00016994,2]
[330207000,1719159041430,-500.0,0.00016994,2]
[330207001,1719159041442,-500.0,0.00016994,2]
[330207002,1719159041452,-500.0,0.00016994,2]
[330207003,1719159041462,-500.0,0.00016994,2]
[330207004,1719159041471,-511.07389968,0.00016994,2]
[330207005,1719159041481,-500.0,0.00016994,2]
[330207006,1719159041491,-2392.25,0.00016994,2]
[330207007,1719159041500,-500.0,0.00016994,2]
[330207008,1719159041510,-500.0,0.00016994,2]
[330207009,1719159041520,-658.92,0.00016994,2]
[330207010,1719159041529,-527.35782497,0.00016994,2]
[330207011,1719159041538,-917.87,0.00016994,2]
[330207012,1719159041548,-500.0,0.00016994,2]
[330207013,1719159041558,-500.0,0.00016994,2]
[330207014,1719159041567,-500.0,0.00016994,2]
[330207015,1719159041578,-500.0,0.00016994,2]
[330207016,1719159041587,-500.0,0.00016994,2]
[330207017,1719159041597,-500.0,0.00016994,2]
[330207018,1719159041608,-500.0,0.00016994,2]
[330207019,1719159041617,-5621.1,0.00016994,2]
[330207020,1719159041627,-500.0,0.00016994,2]
[330207021,1719159041638,-500.0,0.00016994,2]
[330207022,1719159041647,-500.0,0.00016994,2]
[330207023,1719159041657,-275.08038627,0.00016994,2]
[330207024,1719159041666,-500.0,0.00016994,2]
[330207025,1719159041675,-500.0,0.00016994,2]
[330207026,1719159041685,-500.0,0.00016994,2]
[330207027,1719159041695,-676.25,0.00016994,2]
[330207028,1719159041704,-1082.33,0.00016994,2]
[330207029,1719159041713,-500.0,0.00016994,2]
[330207030,1719159041722,-1881.11,0.00016994,2]
[330207031,1719159041733,-500.0,0.00016994,2]
[330207032,1719159041742,-2097.82,0.00016994,2]
[330207033,1719159041751,-500.0,0.00016994,2]
[330207034,1719159041761,-500.0,0.00016994,2]
[330207035,1719159041770,-151.0,0.00016994,2]
[330207036,1719159041781,-151.0,0.00016994,2]
[330207037,1719159041791,-510.79061686,0.00016994,2]
[330207038,1719159041800,-500.0,0.00016994,2]
[330207039,1719159041810,-500.0,0.00016994,2]
[330207040,1719159041819,-500.0,0.00016994,2]
[330207041,1719159041828,-511.29734096,0.00016994,2]
[330207042,1719159041837,-614.24,0.00016994,2]
[330207043,1719159041847,-500.0,0.00016994,2]
[330207044,1719159041857,-500.0,0.00016994,2]
[330207045,1719159041866,-500.0,0.00016994,2]
[330207046,1719159041875,-1169.9,0.00016994,2]
[330207047,1719159041885,-500.0,0.00016994,2]
[330207048,1719159041894,-1807.68,0.00016994,2]
[330207049,1719159041903,-506.6148599,0.00016994,2]
[330207050,1719159041913,-500.0,0.00016994,2]
[330207051,1719159041922,-496.84770251,0.00016994,2]
[330207052,1719159041933,-500.0,0.00016994,2]
[330207053,1719159041943,-500.0,0.00016994,2]
[330207054,1719159041953,-528.2124807,0.00016994,2]
[330207055,1719159041962,-500.0,0.00016994,2]
[330207056,1719159041971,-584.80702365,0.00016994,2]
[330207057,1719159041983,-1656.77,0.00016994,2]
[330207058,1719159041994,-500.0,0.00016994,2]
[330207059,1719159042003,-500.0,0.00016994,2]
[330207060,1719159042013,-500.0,0.00016994,2]
[330207061,1719159042025,-500.0,0.00016994,2]
[330207062,1719159042035,-543.15011589,0.00016994,2]
[330207063,1719159042044,-1903.89,0.00016994,2]
[330207064,1719159042053,-500.0,0.00016994,2]
[330207065,1719159042064,-503.01,0.00016994,2]
[330207066,1719159042073,-500.0,0.00016994,2]
[330207067,1719159042083,-500.0,0.00016994,2]
[330207068,1719159042092,-500.0,0.00016994,2]
[330207069,1719159042103,-1984.79,0.00016994,2]
[330207070,1719159042112,-509.83035294,0.00016994,2]
[330207071,1719159042122,-615.59,0.00016994,2]
[330207072,1719159042131,-500.0,0.00016994,2]
[330207073,1719159042141,-500.0,0.00016994,2]
[330207074,1719159042150,-500.0,0.00016994,2]
[330207075,1719159042160,-547.26366995,0.00016994,2]
[330207076,1719159042169,-500.0,0.00016994,2]
[330207077,1719159042179,-1748.02,0.00016994,2]
[330207078,1719159042190,-25.21257589,0.00016994,2]
[330207132,1719159046018,-644.51,0.00016717,2]
[330207133,1719159046032,-465.82389946,0.0001672,2]
[330207134,1719159046084,-34.17610054,0.0001672,2]
[330207135,1719159046093,-584.11,0.0001672,2]
[330207136,1719159046105,-310.25776366,0.00016991,2]
[330207137,1719159046117,-334.25223634,0.00016991,2]
[330207138,1719159046126,-479.81847818,0.00016994,2]
[330207139,1719159046136,-1569.8,0.00016994,2]
[330207140,1719159046145,-500.0,0.00016994,2]
[330207141,1719159046154,-500.0,0.00016994,2]
[330207142,1719159046164,-500.0,0.00016994,2]
[330207143,1719159046174,-500.0,0.00016994,2]
[330207144,1719159046183,-215.75054419,0.00016994,2]
[330207145,1719159046192,-400.37874129,0.00016994,2]
[330207146,1719159046317,-198.92125871,0.00016994,2]
[330207147,1719159046329,-500.0,0.00016994,2]
[330207148,1719159046338,-500.0,0.00016994,2]
[330207149,1719159046348,-500.0,0.00016994,2]
[330207150,1719159046358,-662.87,0.00016994,2]
[330207151,1719159046369,-500.0,0.00016994,2]
[330207152,1719159046379,-500.0,0.00016994,2]
[330207153,1719159046389,-542.35269292,0.00016994,2]
[330207154,1719159046398,-500.0,0.00016994,2]
[330207155,1719159046407,-500.0,0.00016994,2]
[330207156,1719159046417,-500.0,0.00016994,2]
[330207157,1719159046428,-500.0,0.00016994,2]
[330207158,1719159046439,-1512.44,0.00016994,2]
[330207159,1719159046449,-835.72,0.00016994,2]
[330207160,1719159046458,-611.26,0.00016994,2]
[330207161,1719159046468,-954.27,0.00016994,2]
[330207162,1719159046478,-500.0,0.00016994,2]
[330207163,1719159046487,-690.66,0.00016994,2]
[330207164,1719159046497,-500.0,0.00016994,2]
[330207165,1719159046506,-584.11,0.00016994,2]
[330207166,1719159046515,-9600.62757657,0.00016998,2]
[330207167,1719159046525,-9295.25869373,0.00017082,2]
[330207168,1719159046535,-1958.89994423,0.00017176,2]
[330207169,1719159051539,159.28756752,0.00024999,60]
[330207170,1719159068502,182.8,0.00010959,2]
[330207171,1719159094135,166.50299,0.00023562,61]
[330207172,1719159094390,166.50299,0.00023562,80]
[330207173,1719159094926,166.50299,0.00023562,100]
[330207174,1719159095126,166.50299,0.00023562,120]
[330207175,1719159153452,525.34267805,0.00024999,60]
[330207176,1719159171418,152.33,0.00010959,2]
[330207177,1719159181964,761.67,0.00010959,2]
[330207181,1719159345497,300.0,0.00025,60]
[330207182,1719159362378,300.0,0.00025,60]
[330207183,1719159365806,154.94776923,0.00013283,2]
[330207185,1719159376612,300.0,0.00025,60]
[330207186,1719159390184,300.0,0.00025,60]
[330207188,1719159409051,300.0,0.00025,60]
[330207189,1719159424359,162.4747,0.00025,60]
[330207192,1719159668545,159.28756752,0.00024999,60]
[330207193,1719159750211,525.34267805,0.00024999,60]
[330207199,1719160049813,166.50299,0.00023562,61]
[330207200,1719160050034,166.50299,0.00023562,120]
[330207201,1719160212075,159.28756752,0.00024999,60]
[330207271,1719160238357,-300.0,0.00015202,2]
[330207274,1719160238375,-2825.46437078,0.00015203,2]
[330207275,1719160238387,-565.90470413,0.00015203,2]
[330207277,1719160238399,-582.41753839,0.00015203,2]
[330207279,1719160238411,-2175.83033171,0.00015203,2]
[330207281,1719160238423,-1464.08501421,0.00015203,2]
[330207284,1719160238438,-998.99316,0.00015203,2]
[330207285,1719160238451,-10934.77274788,0.00015203,2]
[330207348,1719160242183,-4093.75210726,0.00015203,2]
[330207349,1719160242196,-311.20545213,0.00015203,2]
[330207391,1719160302607,1449.58,0.00025,60]
[330207392,1719160338018,525.34267805,0.00024999,60]
[330207400,1719160470984,500.0,0.00025,60]
[330207401,1719160488752,500.0,0.00025,60]
[330207409,1719160864256,159.28756752,0.00024999,60]
[330207411,1719161051096,200.20412542,0.00026,120]
[330207412,1719161112353,237.4023889,0.00013699,2]
[330207413,1719161150156,525.34267805,0.00024999,60]
[330207414,1719161202686,434.3499096,0.00016605,30]
[330207417,1719161316101,24900.0,0.00013746,2]
[330207419,1719161374325,-480.88898671,0.0001405,2]
[330207420,1719161374366,-480.88898671,0.0001405,2]
[330207421,1719161374413,-480.88898671,0.0001405,2]
[330207422,1719161374465,-199.97982703,0.0001405,2]
[330207424,1719161388796,159.28756752,0.00024999,60]
[330207426,1719161392981,2421.00060253,0.00013746,2]
[330207428,1719161399247,-513.74192245,0.0001405,2]
[330207429,1719161399311,-513.74192245,0.0001405,2]
[330207430,1719161399355,-304.50800055,0.0001405,2]
[330207435,1719161407838,164.04847885,0.00013979,2]
[330207557,1719161438571,-25.36136739,0.0001405,2]
[330207558,1719161438581,-308.59741437,0.0001408,2]
[330207559,1719161438594,-220.19528563,0.0001408,2]
[330207560,1719161438604,-250.0,0.00014136,2]
[330207561,1719161438614,-5277.56392113,0.00015042,2]
[330207562,1719161438624,-300.0,0.00015213,2]
[330207563,1719161438633,-300.0,0.00015213,2]
[330207564,1719161438643,-6186.0318361,0.00015214,2]
[330207566,1719161438655,-785.95543694,0.00015214,2]
[330207567,1719161438665,-1012.80282672,0.00015214,2]
[330207568,1719161438677,-1634.35699566,0.00015214,2]
[330207569,1719161438687,-672.460821,0.00015561,2]
[330207570,1719161438697,-153.5410938,0.000156,2]
[330207571,1719161438706,-1403.36561637,0.00015661,2]
[330207572,1719161438719,-2519.84060981,0.00015661,2]
[330207573,1719161438728,-670.02340753,0.00015746,2]
[330207574,1719161438825,159.28756752,0.00016944,60]
[330207582,1719161440929,-2.43741343,0.00015746,2]
[330207583,1719161440938,-2424.52528226,0.00015883,2]
[330207584,1719161440947,-7525.44462698,0.00015897,2]
[330207585,1719161440957,-839.11466408,0.00015899,2]
[330207586,1719161440967,-672.46082096,0.00015932,2]
[330207587,1719161440980,-159.70589002,0.00015934,2]
[330207588,1719161440990,-2115.0148568,0.00015999,2]
[330207589,1719161441001,-672.46082096,0.00016117,2]
[330207590,1719161441012,-267.46260696,0.00016134,2]
[330207591,1719161441021,-672.46082096,0.00016302,2]
[330207592,1719161441031,-195.70717021,0.00016389,2]
[330207593,1719161441041,-208.70799621,0.0001639,2]
[330207594,1719161441050,-2128.88510458,0.0001639,2]
[330207595,1719161441060,-1312.82746859,0.00016391,2]
[330207596,1719161441069,-531.01956017,0.00016391,2]
[330207597,1719161441079,-198.24661532,0.00016391,2]
[330207598,1719161441088,-2040.5580749,0.00016391,2]
[330207599,1719161441097,-597.61557581,0.00016391,2]
[330207600,1719161441107,-174.89250656,0.00016391,2]
[330207601,1719161441116,-2040.5580749,0.00016391,2]
[330207602,1719161441126,-723.68394442,0.00016392,2]
[330207603,1719161441135,-155.0046003,0.00016392,2]
[330207604,1719161441144,-154.85288975,0.00016392,2]
[330207605,1719161441154,-305.71597929,0.00016393,2]
[330207606,1719161441163,-196.04291807,0.00016395,2]
[330207607,1719161441173,-154.85288975,0.00016395,2]
[330207608,1719161441183,-159.63274118,0.00016396,2]
[330207609,1719161441192,-200.0,0.00016396,2]
[330207610,1719161441202,-1940.6065181,0.00016397,2]
[330207611,1719161441212,-303.08520064,0.00016397,2]
[330207612,1719161441221,-173.69760146,0.00016401,2]
[330207613,1719161441231,-148.86087004,0.00016401,2]
[330207614,1719161441495,-5.99201971,0.00016401,2]
[330207615,1719161441506,-626.91764322,0.00016401,2]
[330207616,1719161441515,-157.16850522,0.00016402,2]
[330207617,1719161441525,-164.63956456,0.00016402,2]
[330207618,1719161441534,-45.27563779,0.00016402,2]
[330207674,1719161443756,-3307.38638853,0.00015202,2]
[330207764,1719161446622,-3664.60088451,0.00015202,2]
[330207765,1719161446632,-2647.15982238,0.00015202,2]
[330207766,1719161446641,-302.99221457,0.00016389,2]
[330207768,1719161446650,-201.24707673,0.00016394,2]
[330207770,1719161446660,-230.79957655,0.00016401,2]
[330207772,1719161446671,-19.33160318,0.00016401,2]
[330207773,1719161446681,-109.57725196,0.00016402,2]
[330207775,1719161446690,-155.47753429,0.00016402,2]
[330207776,1719161446699,-184.40968318,0.00016402,2]
[330207777,1719161446709,-154.85288975,0.00016403,2]
[330207778,1719161446718,-154.85288975,0.00016403,2]
[330207779,1719161446728,-154.85288975,0.00016403,2]
[330207780,1719161446738,-154.85288975,0.00016403,2]
[330207781,1719161446747,-154.85288975,0.00016403,2]
[330207782,1719161446756,-1978.49435634,0.00016403,2]
[330207783,1719161446765,-154.85288975,0.00016403,2]
[330207784,1719161446774,-154.85288975,0.00016404,2]
[330207785,1719161446784,-207.68904958,0.00016404,2]
[330207786,1719161446794,-307.49372959,0.00016404,2]
[330207787,1719161446804,-155.68078544,0.00016404,2]
[330207788,1719161446815,-239.52424691,0.00016404,2]